bitfinex/quotes_BTCUSD_20240810
["timestamp","ask_amount","ask_price","bid_price","bid_amount"]
[1723310052046,0.000931,60769.0,60768.0,1.41218251]
[1723310052282,0.000931,60769.0,60768.0,1.39218251]
[1723310052904,0.000931,60769.0,60768.0,1.56299175]
[1723310053303,0.000931,60769.0,60768.0,1.56298861]
[1723310054892,0.000931,60769.0,60768.0,1.39218251]
[1723310055088,0.000931,60769.0,60768.0,1.5629882]
[1723310055296,0.000931,60769.0,60768.0,1.39218251]
[1723310056032,0.000931,60769.0,60768.0,1.7109716]
[1723310056234,0.000931,60769.0,60768.0,1.56299244]
[1723310056439,0.000931,60769.0,60768.0,1.71095664]
[1723310057805,0.000931,60769.0,60768.0,1.39957844]
[1723310058009,0.000931,60769.0,60768.0,1.711062]
[1723310058673,0.000931,60769.0,60768.0,1.71106916]
[1723310059170,0.000931,60769.0,60768.0,1.73106916]
[1723310059379,0.000931,60769.0,60768.0,1.71106916]
[1723310060569,0.000931,60769.0,60768.0,1.73106916]
[1723310062280,0.000931,60769.0,60768.0,1.248765]
[1723310062484,0.000931,60769.0,60768.0,1.73105616]
[1723310062685,0.000931,60769.0,60768.0,1.73104918]
[1723310062817,0.000931,60769.0,60768.0,1.71104918]
[1723310063018,0.000931,60769.0,60768.0,1.73104918]
[1723310063363,0.000931,60769.0,60768.0,1.58308498]
[1723310063858,0.000931,60769.0,60768.0,1.41227955]
[1723310064018,0.000931,60769.0,60768.0,1.39227955]
[1723310064362,0.000931,60769.0,60768.0,1.41228168]
[1723310064728,0.000931,60769.0,60768.0,1.39228168]
[1723310064922,0.000931,60769.0,60768.0,1.1008029]
[1723310065128,0.000931,60769.0,60768.0,1.41228735]
[1723310065740,0.000931,60769.0,60768.0,1.34396574]
[1723310066004,0.000931,60769.0,60768.0,1.41229004]
[1723310069244,0.000931,60769.0,60768.0,1.58310059]
[1723310069398,0.000931,60769.0,60768.0,1.5831151]
[1723310069598,0.000931,60769.0,60768.0,1.41230455]
[1723310070221,0.000931,60769.0,60768.0,1.58311524]
[1723310070629,0.000931,60769.0,60768.0,1.51478189]
[1723310070957,0.000931,60769.0,60768.0,1.58310616]
[1723310071994,0.000931,60769.0,60768.0,1.73106884]
[1723310072868,0.000931,60769.0,60768.0,1.73106659]
[1723310073108,0.000931,60769.0,60768.0,1.71096181]
[1723310073318,0.000931,60769.0,60768.0,1.73755913]
[1723310073496,0.000931,60769.0,60768.0,1.2070386]
[1723310073689,0.000931,60769.0,60768.0,1.83755274]
[1723310073896,0.000931,60769.0,60768.0,1.94051033]
[1723310074114,0.000931,60769.0,60768.0,1.96051033]
[1723310074249,0.000931,60769.0,60768.0,1.94651033]
[1723310075267,0.000931,60769.0,60768.0,1.96051033]
[1723310075469,0.000931,60769.0,60768.0,1.96020276]
[1723310076020,0.000931,60769.0,60768.0,1.94020276]
[1723310076573,0.000931,60769.0,60768.0,2.17858544]
[1723310076955,0.000931,60769.0,60768.0,2.15858544]
[1723310077560,0.000931,60769.0,60768.0,2.17858544]
[1723310079150,0.000931,60769.0,60768.0,2.19858544]
[1723310079346,0.000931,60769.0,60768.0,2.17858544]
[1723310079722,0.000931,60769.0,60768.0,2.20017271]
[1723310079926,0.000931,60769.0,60768.0,1.96021908]
[1723310080167,0.000931,60769.0,60768.0,2.17856282]
[1723310080542,0.000931,60769.0,60768.0,2.15856282]
[1723310080949,0.000931,60769.0,60768.0,2.17856282]
[1723310081164,0.000931,60769.0,60768.0,2.19856282]
[1723310081354,0.000931,60769.0,60768.0,1.93520282]
[1723310081550,0.000931,60769.0,60768.0,1.60390149]
[1723310081794,0.000931,60769.0,60768.0,1.68270149]
[1723310081995,0.000931,60769.0,60768.0,1.28039482]
[1723310082308,0.000931,60769.0,60768.0,1.83071905]
[1723310083930,0.000931,60769.0,60768.0,1.83071935]
[1723310084132,0.000931,60769.0,60768.0,1.28039482]
[1723310084309,0.000931,60769.0,60768.0,1.82941949]
[1723310087290,0.000931,60769.0,60768.0,1.82944231]
[1723310088908,0.000931,60769.0,60768.0,1.829475]
[1723310089452,0.000931,60769.0,60768.0,1.82952796]
[1723310089647,0.000931,60769.0,60768.0,1.65872074]
[1723310090022,0.000931,60769.0,60768.0,1.51075156]
[1723310090786,0.000931,60769.0,60768.0,1.51063292]
[1723310092087,0.000931,60769.0,60768.0,0.58996924]
[1723310092088,0.037531,60769.0,60768.0,0.58996924]
[1723310092265,0.037531,60769.0,60768.0,0.89413637]
[1723310092266,0.03794373,60769.0,60768.0,0.89413637]
[1723310092401,0.03794373,60769.0,60768.0,0.7631668]
[1723310092402,0.000931,60769.0,60768.0,0.7631668]
[1723310093512,0.000931,60769.0,60768.0,0.83718531]
[1723310093690,0.000931,60769.0,60768.0,0.83720292]
[1723310093922,0.000931,60769.0,60768.0,0.70053711]
[1723310094122,0.000931,60769.0,60768.0,0.83720317]
[1723310094429,0.000931,60769.0,60768.0,0.84694119]
[1723310094644,0.000931,60769.0,60768.0,0.75292268]
[1723310094797,0.000931,60769.0,60768.0,0.82694119]
[1723310095205,0.000931,60769.0,60768.0,0.87161826]
[1723310095458,0.000931,60769.0,60768.0,0.77292268]
[1723310095791,0.000931,60769.0,60768.0,0.77291905]
[1723310097570,0.000931,60769.0,60768.0,0.84690613]
[1723310098182,0.000931,60769.0,60768.0,0.77291905]
[1723310099582,0.00134373,60769.0,60768.0,0.84690792]
[1723310100284,0.000931,60769.0,60768.0,0.82690792]
[1723310100588,0.00134373,60769.0,60768.0,0.68234792]
[1723310100938,0.00134373,60769.0,60768.0,0.84690792]
[1723310101614,0.000931,60769.0,60768.0,0.84690792]
[1723310102387,0.000931,60769.0,60768.0,0.84690159]
[1723310102593,0.000931,60769.0,60768.0,0.86990159]
[1723310102840,0.000931,60769.0,60768.0,0.84990159]
[1723310103036,0.000931,60769.0,60768.0,0.86990159]
[1723310103656,0.000931,60769.0,60768.0,0.84990159]
[1723310103991,0.000931,60769.0,60768.0,0.86990159]
[1723310104447,0.000931,60769.0,60768.0,0.79591958]
[1723310104603,0.000931,60769.0,60768.0,0.84990159]
[1723310104943,0.000931,60769.0,60768.0,0.77591958]
[1723310105150,0.000931,60769.0,60768.0,0.96047958]
[1723310105348,0.000931,60769.0,60768.0,0.8498929]
[1723310105656,0.000931,60769.0,60768.0,1.0974529]
[1723310106311,0.000931,60769.0,60768.0,1.02347148]
[1723310107541,0.000931,60769.0,60768.0,1.02347077]
[1723310108363,0.000931,60769.0,60768.0,1.1467312]
[1723310108942,0.000931,60769.0,60768.0,1.2285312]
[1723310109077,0.000931,60769.0,60768.0,1.08527077]
[1723310110523,0.000931,60769.0,60768.0,1.25928569]
[1723310110887,0.000931,60769.0,60768.0,1.32761083]
[1723310111134,0.000931,60769.0,60768.0,1.25928569]
[1723310111328,0.000931,60769.0,60768.0,1.32761077]
[1723310112416,0.000931,60769.0,60768.0,1.34761077]
[1723310112855,0.000931,60769.0,60768.0,1.33361077]
[1723310113076,0.000931,60769.0,60768.0,1.33361069]
[1723310113275,0.000931,60769.0,60768.0,1.16905069]
[1723310113478,0.000931,60769.0,60768.0,1.16151529]
[1723310113687,0.000931,60769.0,60768.0,0.94867696]
[1723310114110,0.000931,60769.0,60768.0,0.87471077]
[1723310114315,0.03074373,60769.0,60768.0,0.82371077]
[1723310114535,0.030331,60769.0,60768.0,0.8730223]
[1723310114694,0.030331,60769.0,60768.0,0.9010223]
[1723310115543,0.030331,60769.0,60768.0,0.85171077]
[1723310116091,0.030331,60769.0,60768.0,0.83771077]
[1723310116297,0.03794373,60769.0,60768.0,0.40605275]
[1723310116487,0.03794373,60769.0,60768.0,0.42005275]
[1723310116713,0.03794373,60769.0,60768.0,0.59861275]
[1723310116947,0.03794373,60769.0,60768.0,0.4619586]
[1723310117111,0.03794373,60769.0,60768.0,0.58462733]
[1723310117366,0.03794373,60769.0,60768.0,0.57062733]
[1723310117593,0.03794373,60769.0,60768.0,0.58462733]
[1723310117770,0.03794373,60769.0,60768.0,0.59862733]
[1723310117997,0.037531,60769.0,60768.0,0.58462733]
[1723310119402,0.037531,60769.0,60768.0,0.59862733]
[1723310120016,0.037531,60769.0,60768.0,0.4619586]
[1723310120244,0.037531,60769.0,60768.0,0.59862715]
[1723310123101,0.03794373,60769.0,60768.0,0.59862715]
[1723310123779,0.03794373,60769.0,60768.0,0.4619586]
[1723310123931,0.000931,60769.0,60768.0,0.76318901]
[1723310124138,0.000931,60769.0,60768.0,0.6265186]
[1723310124471,0.000931,60769.0,60768.0,0.76318901]
[1723310126243,0.037531,60769.0,60768.0,0.59862901]
[1723310126479,0.03794373,60769.0,60768.0,0.59862901]
[1723310127292,0.03794373,60769.0,60768.0,0.76318901]
[1723310127494,0.03794373,60769.0,60768.0,0.6265186]
[1723310127787,0.03794373,60769.0,60768.0,0.763189]
[1723310127982,0.03794373,60769.0,60768.0,0.6265186]
[1723310128201,0.03794373,60769.0,60768.0,0.763189]
[1723310129586,0.037531,60769.0,60768.0,0.763189]
[1723310129800,0.000931,60769.0,60768.0,0.844589]
[1723310130197,0.000931,60769.0,60768.0,0.95751871]
[1723310130401,0.000931,60769.0,60768.0,0.93751871]
[1723310130775,0.000931,60769.0,60768.0,0.93751531]
[1723310130981,0.000931,60769.0,60768.0,0.80084831]
[1723310131226,0.000931,60769.0,60768.0,0.93751547]
[1723310131413,0.000931,60769.0,60768.0,0.98218032]
[1723310131744,0.000931,60769.0,60768.0,0.96218032]
[1723310132677,0.000931,60769.0,60768.0,0.90818576]
[1723310132897,0.000931,60769.0,60768.0,0.88818576]
[1723310133098,0.000931,60769.0,60768.0,0.90818576]
[1723310133298,0.000931,60769.0,60768.0,0.88818576]
[1723310133552,0.000931,60769.0,60768.0,1.00684518]
[1723310133743,0.000931,60769.0,60768.0,0.88818576]
[1723310133953,0.000931,60769.0,60768.0,0.98684518]
[1723310134303,0.000931,60769.0,60768.0,1.00684518]
[1723310134560,0.000931,60769.0,60768.0,0.98684518]
[1723310134772,0.000931,60769.0,60768.0,0.85023301]
[1723310134981,0.000931,60769.0,60768.0,1.0068957]
[1723310135388,0.000931,60769.0,60768.0,0.98689556]
[1723310135594,0.000931,60769.0,60768.0,1.00689556]
[1723310136462,0.000931,60769.0,60768.0,1.08569556]
[1723310136772,0.000931,60769.0,60768.0,1.02209556]
[1723310138090,0.000931,60769.0,60768.0,0.94069556]
[1723310138503,0.00134373,60769.0,60768.0,0.94069556]
[1723310138940,0.00134373,60769.0,60768.0,0.80403301]
[1723310139141,0.00134373,60769.0,60768.0,0.94069685]
[1723310139545,0.00134373,60769.0,60768.0,0.92069685]
[1723310139678,0.000931,60769.0,60768.0,0.92069685]
[1723310140298,0.000931,60769.0,60768.0,1.06569685]
[1723310141817,0.000931,60769.0,60768.0,0.92903301]
[1723310141997,0.000931,60769.0,60768.0,0.96698261]
[1723310142766,0.000931,60769.0,60768.0,1.06571973]
[1723310145371,0.000931,60769.0,60768.0,0.92905572]
[1723310145576,0.000931,60769.0,60768.0,1.06571933]
[1723310145973,0.000931,60769.0,60768.0,1.25027933]
[1723310146174,0.000931,60769.0,60768.0,1.45160183]
[1723310146480,0.000931,60769.0,60768.0,1.32820882]
[1723310146841,0.000931,60769.0,60768.0,1.39653554]
[1723310147029,0.000931,60769.0,60768.0,1.39653515]
[1723310147162,0.000931,60769.0,60768.0,1.41653515]
[1723310147520,0.000931,60769.0,60768.0,1.34820882]
[1723310147723,0.000931,60769.0,60768.0,1.29795618]
[1723310147926,0.000931,60769.0,60768.0,1.14654221]
[1723310148220,0.000931,60769.0,60768.0,1.28395618]
[1723310148559,0.000931,60769.0,60768.0,1.26995618]
[1723310148768,0.000931,60769.0,60768.0,1.26995645]
[1723310148969,0.000931,60769.0,60768.0,1.25927364]
[1723310149170,0.000931,60769.0,60768.0,1.17454057]
[1723310149387,0.000931,60769.0,60768.0,1.28395481]
[1723310149596,0.000931,60769.0,60768.0,1.13329284]
[1723310149796,0.000931,60769.0,60768.0,1.2979526]
[1723310150643,0.000931,60769.0,60768.0,1.2839526]
[1723310151348,0.000931,60769.0,60768.0,1.2731526]
[1723310151512,0.000931,60769.0,60768.0,1.14973836]
[1723310151712,0.000931,60769.0,60768.0,1.27315305]
[1723310151910,0.000931,60769.0,60768.0,1.25315305]
[1723310152316,0.000931,60769.0,60768.0,1.03279305]
[1723310152525,0.000931,60769.0,60768.0,0.82797836]
[1723310152526,0.00134373,60769.0,60768.0,0.82797836]
[1723310152746,0.00134373,60769.0,60768.0,0.92671093]
[1723310152988,0.00134373,60769.0,60768.0,0.79005117]
[1723310153121,0.00134373,60769.0,60768.0,0.94071507]
[1723310153518,0.00134373,60769.0,60768.0,0.8419825]
[1723310153723,0.00134373,60769.0,60768.0,0.94071952]
[1723310155201,0.000931,60769.0,60768.0,0.94071952]
[1723310155554,0.00134373,60769.0,60768.0,0.94071952]
[1723310155756,0.000931,60769.0,60768.0,0.16796758]
[1723310155981,0.17141897,60769.0,60768.0,0.16798676]
[1723310156299,0.17141897,60769.0,60768.0,0.03130368]
[1723310156864,0.17141897,60769.0,60768.0,0.01730368]
[1723310157287,0.17141897,60769.0,60768.0,0.01130368]
[1723310157698,0.17141897,60769.0,60768.0,0.02530368]
[1723310157868,0.33597597,60769.0,60768.0,0.02530368]
[1723310158111,0.33597597,60769.0,60768.0,0.01130368]
[1723310158285,0.37257597,60769.0,60768.0,0.01130368]
[1723310158486,0.33597597,60769.0,60768.0,0.01730368]
[1723310158782,0.17141897,60769.0,60768.0,0.01730368]
[1723310159210,0.33597597,60769.0,60768.0,0.01730368]
[1723310161548,0.60053297,60769.0,60768.0,0.01730368]
[1723310161725,2.00649474,60769.0,60768.0,0.014]
[1723310161926,2.04794267,60769.0,60768.0,0.014]
[1723310162079,2.15974259,60769.0,60768.0,0.014]
[1723310162667,2.15974259,60769.0,60768.0,0.006]
[1723310162869,2.15974259,60769.0,60740.0,0.0109141]
[1723310162870,0.08272873,60741.0,60740.0,0.0109141]
[1723310163073,0.16152873,60741.0,60740.0,0.0109141]
[1723310163276,0.16152873,60741.0,60740.0,0.0009141]
[1723310163277,0.49665212,60741.0,60740.0,0.0009141]
[1723310163537,0.59665212,60741.0,60740.0,0.0009141]
[1723310163706,0.93179636,60741.0,60740.0,0.0009141]
[1723310163929,0.51785212,60741.0,60740.0,0.0009141]
[1723310164177,0.51785212,60741.0,60740.0,0.02421778]
[1723310164329,0.51785212,60741.0,60740.0,0.00421778]
[1723310164532,0.51785212,60741.0,60740.0,0.02421778]
[1723310164737,0.51885212,60741.0,60740.0,0.00521778]
[1723310165258,0.51785212,60741.0,60740.0,0.00421778]
[1723310165709,0.35421912,60741.0,60740.0,0.00421778]
[1723310165844,0.35421912,60741.0,60740.0,0.02421778]
[1723310165845,0.35380639,60741.0,60740.0,0.02421778]
[1723310166023,0.35480639,60741.0,60740.0,0.00421778]
[1723310166225,0.35480639,60741.0,60740.0,0.02421778]
[1723310166226,0.35380639,60741.0,60740.0,0.02421778]
[1723310166426,0.35421912,60741.0,60740.0,0.02421778]
[1723310166671,0.51985212,60741.0,60740.0,0.02421778]
[1723310167086,0.51985212,60741.0,60740.0,0.00421778]
[1723310167448,0.51985212,60741.0,60740.0,0.02421778]
[1723310167669,0.51943939,60741.0,60740.0,0.02421778]
[1723310167871,0.51943939,60741.0,60740.0,0.00421778]
[1723310168071,0.35521912,60741.0,60740.0,0.02421778]
[1723310168495,0.35521912,60741.0,60740.0,0.00421778]
[1723310168695,0.35521912,60741.0,60740.0,0.02421778]
[1723310169060,0.35521912,60741.0,60740.0,0.00421778]
[1723310170719,0.19058612,60741.0,60740.0,0.02421778]
[1723310170926,0.09058612,60741.0,60740.0,0.00421778]
[1723310171125,0.35521912,60741.0,60740.0,0.00421778]
[1723310171596,0.35421912,60741.0,60740.0,0.00421778]
[1723310172017,0.36021912,60741.0,60740.0,0.00521778]
[1723310172225,0.35921912,60741.0,60740.0,0.02521778]
[1723310172433,0.35921912,60741.0,60740.0,0.00521778]
[1723310172631,0.36021912,60741.0,60740.0,0.00521778]
[1723310172804,0.35980639,60741.0,60740.0,0.00521778]
[1723310173121,0.36021912,60741.0,60740.0,0.0019141]
[1723310173261,0.35421912,60741.0,60740.0,0.0009141]
[1723310173466,0.51743939,60741.0,60740.0,0.0009141]
[1723310173666,0.52243939,60741.0,60740.0,0.0009141]
[1723310173879,0.52343939,60741.0,60740.0,0.0009141]
[1723310175946,0.52385212,60741.0,60740.0,0.0009141]
[1723310176086,0.52343939,60741.0,60740.0,0.0009141]
[1723310176730,0.52385212,60741.0,60740.0,0.0109141]
[1723310177070,0.52343939,60741.0,60740.0,0.0109141]
[1723310178695,0.52343939,60741.0,60740.0,0.0009141]
[1723310178896,0.52385212,60741.0,60740.0,0.0009141]
[1723310179096,0.52343939,60741.0,60740.0,0.0109141]
[1723310180611,0.52385212,60741.0,60740.0,0.0109141]
[1723310181848,0.52343939,60741.0,60740.0,0.0109141]
[1723310182835,0.52385212,60741.0,60740.0,0.0109141]
[1723310184005,0.52385212,60741.0,60740.0,0.00421778]
[1723310184006,0.19438612,60741.0,60740.0,0.00421778]
[1723310184166,0.35901912,60741.0,60740.0,0.00421778]
[1723310184977,0.19438612,60741.0,60740.0,0.00421778]
[1723310185180,0.35901912,60741.0,60740.0,0.00421778]
[1723310185822,0.35860639,60741.0,60740.0,0.00421778]
[1723310186299,0.19438612,60741.0,60740.0,0.00421778]
[1723310186516,0.09438612,60741.0,60740.0,0.00421778]
[1723310187295,0.25901912,60741.0,60740.0,0.00421778]
[1723310187486,0.35401912,60741.0,60740.0,0.00421778]
[1723310188525,0.35301912,60741.0,60740.0,0.00421778]
[1723310188730,0.18838612,60741.0,60740.0,0.00421778]
[1723310189063,0.00785739,60741.0,60740.0,0.35097178]
[1723310189254,0.00785739,60741.0,60740.0,0.6794227]
[1723310189466,0.00041273,60743.0,60742.0,0.02]
[1723310189667,0.08184646,60747.0,60746.0,0.02]
[1723310190005,0.17038111,60747.0,60746.0,0.02]
[1723310190386,0.16996838,60747.0,60746.0,0.02330368]
[1723310190793,0.33458538,60747.0,60746.0,0.02330368]
[1723310190918,0.33458538,60747.0,60746.0,0.00330368]
[1723310192146,0.33499811,60747.0,60746.0,0.00330368]
[1723310192352,0.33499811,60747.0,60746.0,0.02330368]
[1723310192551,0.33699811,60747.0,60746.0,0.02330368]
[1723310192792,0.17238111,60747.0,60746.0,0.02330368]
[1723310192947,0.17238111,60747.0,60746.0,0.02630368]
[1723310193149,0.17038111,60747.0,60746.0,0.02734793]
[1723310193394,0.16996838,60747.0,60746.0,0.02934793]
[1723310193769,0.17038111,60747.0,60746.0,0.02934793]
[1723310193950,0.17038111,60747.0,60746.0,0.03334793]
[1723310194369,0.17038111,60747.0,60746.0,0.02930368]
[1723310195442,0.17038111,60747.0,60746.0,0.02330368]
[1723310195815,0.17038111,60747.0,60746.0,0.02830368]
[1723310196045,0.17038111,60747.0,60746.0,0.02430368]
[1723310196246,0.00581392,60747.0,60746.0,0.02430368]
[1723310196467,0.00581392,60747.0,60746.0,0.4370466]
[1723310196681,0.00041273,60749.0,60748.0,0.102307]
[1723310197050,0.00492849,60749.0,60748.0,0.102307]
[1723310197233,0.00041273,60749.0,60748.0,0.102307]
[1723310197413,0.00492877,60749.0,60748.0,0.102307]
[1723310197614,0.00041273,60749.0,60748.0,0.102307]
[1723310197855,0.00492877,60749.0,60748.0,0.102307]
[1723310198063,0.00041273,60749.0,60748.0,0.102307]
[1723310198260,0.00492996,60749.0,60748.0,0.102307]
[1723310198467,0.00041273,60749.0,60748.0,0.102307]
[1723310198673,0.00493473,60749.0,60748.0,0.102307]
[1723310198873,0.00041273,60749.0,60748.0,0.102307]
[1723310199074,0.00493473,60749.0,60748.0,0.102307]
[1723310199283,0.00041273,60749.0,60748.0,0.105307]
[1723310199475,0.00493613,60749.0,60748.0,0.105307]
[1723310199680,0.00124473,60749.0,60748.0,0.105307]
[1723310199885,0.00576813,60749.0,60748.0,0.27322468]
[1723310200085,0.00124473,60749.0,60748.0,0.27322468]
[1723310200261,0.00576813,60749.0,60748.0,0.27322468]
[1723310200446,0.00124473,60749.0,60748.0,0.27322468]
[1723310200642,0.00578957,60749.0,60748.0,0.27322468]
[1723310201903,0.00578957,60749.0,60748.0,0.35122468]
[1723310202058,0.00578957,60749.0,60748.0,0.41272468]
[1723310202264,0.00537684,60749.0,60748.0,0.24811068]
[1723310202865,0.00578957,60749.0,60748.0,0.24811068]
[1723310205159,0.00537684,60749.0,60748.0,0.16580368]
[1723310205367,0.08809457,60749.0,60748.0,0.16580368]
[1723310205586,0.00578957,60749.0,60748.0,0.16580368]
[1723310205958,0.00537684,60749.0,60748.0,0.16580368]
[1723310206163,0.00578957,60749.0,60748.0,0.16580368]
[1723310207576,0.08809457,60749.0,60748.0,0.02630368]
[1723310208575,0.25270557,60749.0,60748.0,0.01630368]
[1723310208872,0.25270557,60749.0,60748.0,0.02630368]
[1723310209248,0.25229284,60749.0,60748.0,0.013]
[1723310210338,0.25270557,60749.0,60748.0,0.013]
[1723310210738,0.25229284,60749.0,60748.0,0.013]
[1723310211276,0.25270557,60749.0,60748.0,0.02630368]
[1723310211481,0.25270557,60749.0,60748.0,0.01630368]
[1723310211682,0.25270557,60749.0,60748.0,0.013]
[1723310211683,0.25229284,60749.0,60748.0,0.013]
[1723310211905,0.42451657,60749.0,60748.0,0.013]
[1723310212698,0.42451657,60749.0,60748.0,0.01]
[1723310212892,0.42551657,60749.0,60748.0,0.01]
[1723310213330,0.42951657,60749.0,60748.0,0.01]
[1723310213532,0.42231657,60749.0,60748.0,0.01]
[1723310213774,0.42331657,60749.0,60748.0,0.01]
[1723310214423,0.24733373,60748.0,60747.0,0.01404151]
[1723310215009,0.25164581,60748.0,60747.0,0.01404151]
[1723310215560,0.25164581,60748.0,60747.0,0.00404151]
[1723310215561,0.25123308,60748.0,60747.0,0.00404151]
[1723310215760,0.25123308,60748.0,60747.0,0.01404151]
[1723310215960,0.25323308,60748.0,60747.0,0.00404151]
[1723310216322,0.25323308,60748.0,60747.0,0.00504151]
[1723310216686,0.25364581,60748.0,60747.0,0.00504151]
[1723310217547,0.25364581,60748.0,60747.0,0.01504151]
[1723310217741,0.25164581,60748.0,60747.0,0.01504151]
[1723310217972,0.25264581,60748.0,60747.0,0.01504151]
[1723310218380,0.25264581,60748.0,60747.0,0.01404151]
[1723310218500,0.25164581,60748.0,60747.0,0.01404151]
[1723310218739,0.25164581,60748.0,60747.0,0.01604151]
[1723310218961,0.25164581,60748.0,60747.0,0.01404151]
[1723310219158,0.25164581,60748.0,60747.0,0.01704151]
[1723310219453,0.25164581,60748.0,60747.0,0.01404151]
[1723310219801,0.00431208,60748.0,60747.0,0.15854151]
[1723310220002,0.00431208,60748.0,60747.0,0.25815319]
[1723310220003,0.00472481,60748.0,60747.0,0.25815319]
[1723310220173,0.00431208,60748.0,60747.0,0.25815319]
[1723310220726,0.00124473,60749.0,60748.0,0.246807]
[1723310221046,0.00599236,60749.0,60748.0,0.246807]
[1723310221249,0.000832,60749.0,60748.0,0.246807]
[1723310221494,0.00557959,60749.0,60748.0,0.246807]
[1723310221819,0.000832,60749.0,60748.0,0.246807]
[1723310222013,0.00124473,60749.0,60748.0,0.16780368]
[1723310222220,0.00124473,60749.0,60747.0,0.00404151]
[1723310222221,0.00041273,60748.0,60747.0,0.01404151]
[1723310222425,0.08271973,60748.0,60747.0,0.01404151]
[1723310222626,0.08747032,60748.0,60747.0,0.02734519]
[1723310222830,0.25208432,60748.0,60747.0,0.00734519]
[1723310223027,0.08747032,60748.0,60747.0,0.02734519]
[1723310223670,0.25208432,60748.0,60747.0,0.02734519]
[1723310224209,0.25208432,60748.0,60747.0,0.03434519]
[1723310224608,0.25208432,60748.0,60747.0,0.03030368]
[1723310225241,0.25308432,60748.0,60747.0,0.03030368]
[1723310225781,0.25308432,60748.0,60747.0,0.02330368]
[1723310226077,0.25308432,60748.0,60747.0,0.02530368]
[1723310227857,0.25208432,60748.0,60747.0,0.02530368]
[1723310228160,0.25308432,60748.0,60747.0,0.02530368]
[1723310228995,0.25308432,60748.0,60747.0,0.00330368]
[1723310229375,0.25308432,60748.0,60747.0,0.00530368]
[1723310229578,0.08847032,60748.0,60747.0,0.00530368]
[1723310230381,0.08847032,60748.0,60747.0,0.02530368]
[1723310230579,0.08847032,60748.0,60747.0,0.00530368]
[1723310231354,0.00575059,60748.0,60747.0,0.16291168]
[1723310231525,0.00616332,60748.0,60747.0,0.62966033]
[1723310232062,0.00141273,60748.0,60747.0,0.79347525]
[1723310232650,0.00141273,60748.0,60747.0,0.6547436]
[1723310232987,0.00041273,60748.0,60747.0,0.80546531]
[1723310233114,0.00041273,60748.0,60747.0,0.80546642]
[1723310233976,0.00547457,60748.0,60747.0,0.80946642]
[1723310234182,0.00506184,60748.0,60747.0,0.80946642]
[1723310234381,0.00506184,60748.0,60747.0,0.6687436]
[1723310234526,0.000832,60749.0,60748.0,0.388821]
[1723310234729,0.000832,60749.0,60748.0,0.70935874]
[1723310234931,0.00589695,60749.0,60748.0,0.70935874]
[1723310236034,0.00589695,60749.0,60748.0,0.71340095]
[1723310236253,0.00589695,60749.0,60748.0,0.58867813]
[1723310236465,0.000832,60749.0,60748.0,0.9023188]
[1723310236673,0.00586663,60749.0,60748.0,1.21336323]
[1723310236874,0.000832,60749.0,60748.0,1.26221742]
[1723310237275,0.000832,60749.0,60748.0,1.0899328]
[1723310237523,0.000832,60749.0,60748.0,1.08765579]
[1723310237779,0.000832,60749.0,60748.0,1.0689328]
[1723310237996,0.000832,60749.0,60748.0,1.0779328]
[1723310238396,0.000832,60749.0,60748.0,1.20125134]
[1723310239000,0.000832,60749.0,60748.0,1.21325134]
[1723310239202,0.000832,60749.0,60748.0,1.20125134]
[1723310239609,0.000832,60749.0,60748.0,1.14291021]
[1723310239806,0.000832,60749.0,60748.0,1.15689019]
[1723310240012,0.000832,60749.0,60748.0,1.22023132]
[1723310240213,0.000832,60749.0,60748.0,1.16525764]
[1723310240432,0.000832,60749.0,60748.0,1.082899]
[1723310240694,0.000832,60749.0,60748.0,1.096899]
[1723310241058,0.000832,60749.0,60748.0,1.082899]
[1723310241287,0.000832,60749.0,60748.0,1.068899]
[1723310241466,0.000832,60749.0,60748.0,1.082899]
[1723310241876,0.000832,60749.0,60748.0,1.062899]
[1723310242084,0.000832,60749.0,60748.0,1.082899]
[1723310242428,0.000832,60749.0,60748.0,1.2060953]
[1723310242642,0.000832,60749.0,60748.0,1.1920953]
[1723310242842,0.000832,60749.0,60748.0,1.20609541]
[1723310243065,0.000832,60749.0,60748.0,1.15681711]
[1723310243480,0.000832,60749.0,60748.0,1.14618731]
[1723310243680,0.000832,60749.0,60748.0,1.11818731]
[1723310243881,0.000832,60749.0,60748.0,1.06891058]
[1723310244081,0.00124473,60749.0,60748.0,1.07391366]
[1723310244283,0.000832,60749.0,60748.0,1.15271366]
[1723310246287,0.000832,60749.0,60748.0,0.98809966]
[1723310247528,0.000832,60749.0,60748.0,0.85139581]
[1723310247743,0.000832,60749.0,60748.0,0.98810638]
[1723310248941,0.00124473,60749.0,60748.0,0.30226689]
[1723310249338,0.00592339,60749.0,60748.0,0.44296689]
[1723310249538,0.00592339,60749.0,60748.0,0.57968413]
[1723310249539,0.000832,60749.0,60748.0,0.57968413]
[1723310249651,0.000832,60749.0,60748.0,0.56568413]
[1723310249855,0.000832,60749.0,60748.0,0.55168413]
[1723310250056,0.000832,60749.0,60748.0,0.73029813]
[1723310250281,0.000832,60749.0,60748.0,0.74429813]
[1723310250482,0.000832,60749.0,60748.0,0.74429474]
[1723310251679,0.00124473,60749.0,60748.0,0.74429474]
[1723310254008,0.00124473,60749.0,60748.0,0.27835289]
[1723310254009,0.000832,60749.0,60748.0,0.27835289]
[1723310254177,0.00124473,60749.0,60748.0,0.27835289]
[1723310254583,0.000832,60749.0,60748.0,0.27835289]
[1723310254979,0.00124473,60749.0,60748.0,0.05130368]
[1723310255199,0.00634086,60749.0,60748.0,0.05130368]
[1723310255412,0.25325686,60749.0,60748.0,0.028]
[1723310255609,0.41786786,60749.0,60748.0,0.028]
[1723310255808,0.25325686,60749.0,60748.0,0.014]
[1723310256215,0.25325686,60749.0,60748.0,0.018]
[1723310256216,0.41786786,60749.0,60748.0,0.018]
[1723310256426,0.41745513,60749.0,60748.0,0.004]
[1723310256633,0.41745513,60749.0,60748.0,0.008]
[1723310256634,0.41786786,60749.0,60748.0,0.008]
[1723310257076,0.246921,60748.0,60747.0,0.00330368]
[1723310257335,0.51194773,60748.0,60747.0,0.00330368]
[1723310257535,0.00041273,60746.0,60745.0,0.00330368]
[1723310257938,0.00542663,60746.0,60745.0,0.00330368]
[1723310258140,0.41697363,60746.0,60745.0,0.00330368]
[1723310258423,0.4165609,60746.0,60745.0,0.00330368]
[1723310258562,0.51697363,60746.0,60745.0,0.00330368]
[1723310259514,0.51997363,60746.0,60745.0,0.00330368]
[1723310260240,0.51997363,60746.0,60745.0,0.00730368]
[1723310260391,0.51697363,60746.0,60745.0,0.00330368]
[1723310260592,0.51697363,60746.0,60745.0,0.02330368]
[1723310261397,0.51797363,60746.0,60745.0,0.02330368]